{"text_format":"1","workbook":"xlsx","n_sheets":1,"sheets":["CONTROLE GERAL"],"not_rendered":{"charts":0,"images":0,"macros":1,"external_links":0,"defined_names":2,"comments":0,"pivot_tables":0},"unopened":[],"bounds":{"document_bytes":16777216,"sheet_cells":100000,"rows_first":2000,"rows_last":500,"rows_between":2000,"halvings":0,"cell_chars":16384,"cell_head_chars":4096},"cells_cut":0,"cells_raw":0,"read":"whole","date_system":"1900"}

{"sheet":"CONTROLE GERAL","index":0,"n_rows":16,"n_cols":25,"rows_kept":16,"cut":false,"hidden":false,"merged":[[1,1,8,1]]}
[]
[null,"FROTA 2022","BITRUCK",1300,"Bitruck",null,"JOB ENTREGA",null,8]
[null,null,"CARRETA",0,"Carreta",null,"JOB EXTRA"]
[null,null,"EXPRESS",550,"Express",null,"JOB RETIRADA"]
[null,null,"FURGÃO",550,"Furgão",null,"MANUTENÇÃO"]
[null,null,"IVECO",550,"Iveco",null,"ABASTECIMENTO"]
[null,null,"TRUCK",1100,"Truck"]
[null,null,"VUC 10.160",600,"VUC"]
[null,null,"VUC 11.180",600]
[]
["REG","MÊS","DATA","HORA SAÍDA","KM INICIAL","VEÍCULO","MOTORISTA","SERVIÇO EXECUTADO","OS","HORA CHEGADA","KM FINAL","KM PERCORRIDO","VENDA","ABASTECIMENTO","POSTO","LITROS","NOTA","MANUTENÇÃO","FRETE","DATA PGTO FRETE","HORA EXTRA AM","HORA EXTRA PM","ALIMENTAÇÃO","CUSTO TOTAL","OBSERVAÇÕES"]
[1,{"$f":"MONTH(Tabela4[[#This Row],[DATA]])","v":6},"20/06/2022","15:00:00",100,"BITRUCK","FÁBIO","JOB ENTREGA",1001,"16:00:00",150,{"$f":"Tabela4[[#This Row],[KM FINAL]]-Tabela4[[#This Row],[KM INICIAL]]","v":50},{"$f":"VLOOKUP(Tabela4[[#This Row],[VEÍCULO]],C2:D9,2,1)","v":1300},100,"TESTE",20,1,null,null,null,null,null,null,{"$f":"SUM(N12,R12:S16,U12:W16)","v":3465},"TESTANDO"]
[2,{"$f":"MONTH(Tabela4[[#This Row],[DATA]])","v":6},"22/06/2022","16:00:00",230,"VUC 10.160","KEU","JOB EXTRA",1002,"18:00:00",300,{"$f":"Tabela4[[#This Row],[KM FINAL]]-Tabela4[[#This Row],[KM INICIAL]]","v":70},{"$f":"VLOOKUP(Tabela4[[#This Row],[VEÍCULO]],C3:D10,2,1)","v":600},null,null,null,null,null,null,null,null,15,50,{"$f":"SUM(N13,R13:S15,U13:W15)","v":3365},"TESTANDO 2"]
[3,{"$f":"MONTH(Tabela4[[#This Row],[DATA]])","v":6},"22/06/2022","18:00:00",null,"TRANSHOW",null,"JOB RETIRADA",1002,"20:00:00",null,{"$f":"Tabela4[[#This Row],[KM FINAL]]-Tabela4[[#This Row],[KM INICIAL]]","v":0},{"$f":"VLOOKUP(Tabela4[[#This Row],[VEÍCULO]],C4:D11,2,1)","v":550},null,null,null,2,null,1500,"30/07/2022",null,null,null,{"$f":"SUM(N14,R14:S17,U14:W17)","v":3300},"TESTANDO 3"]
[7,{"$f":"MONTH(Tabela4[[#This Row],[DATA]])","v":1},null,null,null,"BITRUCK",null,"MANUTENÇÃO",1003,null,null,{"$f":"Tabela4[[#This Row],[KM FINAL]]-Tabela4[[#This Row],[KM INICIAL]]","v":0},{"$f":"VLOOKUP(Tabela4[[#This Row],[VEÍCULO]],C5:D12,2,1)","v":{"$error":"#N/A"}},null,null,null,10,1800,null,null,null,null,null,{"$f":"SUM(N15,R15:S15,U15:W15)","v":1800}]
[null,{"$f":"MONTH(Tabela4[[#This Row],[DATA]])","v":1},null,null,null,null,null,null,null,null,null,{"$f":"Tabela4[[#This Row],[KM FINAL]]-Tabela4[[#This Row],[KM INICIAL]]","v":0},{"$f":"VLOOKUP(Tabela4[[#This Row],[VEÍCULO]],C6:D13,2,1)","v":{"$error":"#N/A"}},null,null,null,null,null,null,null,null,null,null,{"$f":"SUM(N16,R16:S20,U16:W20)","v":0}]